Cogmind - Beta 17.1 @@@ ROGUE MODE // 2026.09.04 @ 12:40:56 Player: TheLostLambda Result: Sacrificed to X0-1V1 Performance ------------- Evolutions (0) 0 Regions Visited (1) 200 Robots Destroyed (16) 80 Value Destroyed (267) 267 Prototype IDs (2) 40 Alien Tech Used (0) 0 Bonus (0) 0 TOTAL SCORE: 587 Bonus ------- None Cogmind --------- Core Integrity 0/250 Matter 300/300 Energy 125/125 System Corruption 0% Temperature Cool (0) Movement Rolling (80) Location -10/Materials Parts ------- > --- POWER (1) -------- Light Ion Engine > --- PROPULSION (2) --- Wheel Wheel > --- UTILITY (2) ------ Small Storage Unit Seismic Detector > --- WEAPON (2) ------- Particle Gun Hammer > --- INVENTORY (8) ---- High-capacity Storage Unit Sensor Array Signal Interpreter Improved Terrain Scanner ECM Suite EM Pulse Gun Light Cannon Peak State ------------ > --- POWER ------------ Light Ion Engine > --- PROPULSION ------- Light Treads Light Treads > --- UTILITY ---------- Small Storage Unit Seismic Detector > --- WEAPON ----------- Medium Laser Particle Gun > --- INVENTORY -------- Light Ion Engine Wheel Heat Sink Sensor Array Signal Interpreter Improved Terrain Scanner Assault Rifle Mining Laser [Rating: 9] Favorites ----------- Power Light Ion Engine Engine Light Ion Engine Propulsion Light Treads Treads Light Treads Wheel Wheel Utility Small Storage Unit Device Seismic Detector Storage Small Storage Unit Weapon Particle Gun Energy Gun Particle Gun Ballistic Gun Assault Rifle Ballistic Cannon Light Cannon Special Weapon Mining Laser Impact Weapon Hammer Build | -11 -10 ------- Run | Yrd Mat Slots Evolved . | . . Power . | . . Propulsion . | . . Utility . | . . Weapon . | . . Parts Attached 16 | 8 8 Power 2 | 1 1 Engine 2 | 1 1 Core . | . . Reactor . | . . Propulsion 4 | 2 2 Treads 2 | 2 . Leg . | . . Wheel 2 | . 2 Hover . | . . Flight . | . . Utility 2 | 2 . Device 1 | 1 . Storage 1 | 1 . Processor . | . . Hackware . | . . Protection . | . . Artifact . | . . Weapon 8 | 3 5 Energy Gun 3 | 1 2 Energy Cannon . | . . Ballistic Gun 1 | 1 . Ballistic Cannon 2 | . 2 Launcher . | . . Special Weapon 1 | 1 . Impact Weapon 1 | . 1 Slashing Weapon . | . . Piercing Weapon . | . . Special Melee Weapon . | . . Unidentified Prototypes . | . . Parts Lost 4 | . 4 Power 1 | . 1 Propulsion 2 | . 2 Utility . | . . Weapon 1 | . 1 Highest Loss Streak 3 | . 3 To Critical Strikes . | . . Average Backups 6 | 4 7 Power . | . . Propulsion 1 | 2 . Utility 3 | . 4 Weapon 1 | . 1 Tool/Special . | . . Unused Backups 11 | . 11 Power . | . . Propulsion 3 | . 3 Utility 6 | . 6 Weapon 2 | . 2 Tool/Special . | . . Average Slot Usage (%) 97 | . 97 Engine 14 | . 14 Treads 14 | . 14 Wheel 11 | . 11 Device 14 | . 14 Storage 14 | . 14 Energy Gun 13 | . 13 Ballistic Cannon 4 | . 4 Special Weapon 2 | . 2 Impact Weapon 7 | . 7 Peak Build Rating 9 | 8 9 Average Rating 7 | 5 7 On Entrance 4 | . 8 Avg Prop Armor Cover (%) . | . . Naked Turns . | . . Heaviest Build 15 | 13 15 Greatest Support 40 | 40 40 Greatest Overweight (x) 1 | . 1 Average Overweight (x) . | . . Largest Inventory Capacity 8 | 8 8 Average Capacity 7 | 7 8 Most Carried 8 | 8 8 Average Carried 6 | 4 7 Final Capacity 8 | 8 8 Final Carried 8 | 8 7 Class Distribution -------------------- 100% | Mutant Dominant Class ---------------- Mutant | -10/Materials Resources | -11 -10 ----------- Run | Yrd Mat Matter Collected 419 | 302 117 Remotely . | . . Salvage Created 410 | 144 266 Parts 24 | 11 13 Haulers Intercepted . | . . Recyclers Shooed . | . . Parts Field Recycled . | . . Retrieved Matter . | . . Parts Self-Destructed . | . . Prevented . | . . Parts Restored . | . . Kills | -11 -10 ------- Run | Yrd Mat Combat Hostiles Destroyed 9 | . 9 Melee 2 | . 2 Cannons 2 | . 2 AOE 2 | . 2 Classes Destroyed 6 | 2 4 Worker 1 | . 1 Builder 2 | . 2 Tunneler 3 | 3 . Recycler 1 | 1 . Swarmer 5 | . 5 Grunt 4 | . 4 Best Kill Streak 4 | 3 4 Combat Bots Only 4 | . 4 Max Kills in Single Turn 2 | 1 2 Gunslinging . | . . Exploded 2 | . 2 Melee 1 | . 1 Uniques/NPCs Destroyed . | . . Combat | -11 -10 -------- Run | Yrd Mat Hostile Shots Fired 97 | . 97 Missed 15 | . 15 Hits 82 | . 82 Projectile 82 | . 82 Damage Taken 844 | . 844 Core 171 | . 171 Absorbed by Shields . | . . Core Remaining (%) 100 | 100 . Volleys Fired 27 | 8 19 Largest 2 | 1 2 Hottest 100 | 50 100 Shots Fired 44 | 8 36 Gun 27 | 8 19 Cannon 15 | . 15 Launcher . | . . Special 2 | . 2 Kinetic 19 | 4 15 Thermal 25 | 4 21 Explosive . | . . Electromagnetic . | . . Robot Hit Streak 10 | 8 10 Robot Miss Streak 4 | . 4 Penetration Max . | . . Secondary Targets . | . . Shots Hit Robots 37 | 8 29 Core Hits 13 | 5 8 Critical Kills . | . . Critical Parts Destroyed 2 | . 2 Critical Strikes 3 | . 3 Burn 1 | . 1 Smash 2 | . 2 Melee Attacks 16 | . 16 Impact 16 | . 16 Slashing . | . . Piercing . | . . Sneak Attacks 3 | . 3 Combat Hostiles . | . . Follow-up Attacks . | . . Damage Inflicted 889 | 101 788 Guns 289 | 101 188 Cannons 76 | . 76 Explosions 169 | . 169 Melee 349 | . 349 Ramming 6 | . 6 Kinetic 128 | 52 76 Thermal 406 | 49 357 Explosive . | . . Electromagnetic . | . . Impact 349 | . 349 Slashing . | . . Piercing . | . . Highest Corruption . | . . Average Corruption . | . . Corruption Purged . | . . Corruption Blocked . | . . Overload Shots . | . . Overflow Damage 224 | . 224 Projectiles . | . . Explosions 122 | . 122 Melee 102 | . 102 Knockbacks 3 | . 3 Impact 1 | . 1 Kinetic 2 | . 2 Secondary . | . . Self-Inflicted Damage 74 | . 74 Shots 1 | . 1 Rammed 5 | . 5 Targets Rammed 5 | . 5 Kicked . | . . Crushed . | . . Highest Temperature 198 | 40 198 Average Temperature 59 | 20 64 Received Heat Transfer 180 | . 180 Siege Activations . | . . Martial Activations . | . . Shielding Activations . | . . Robots Disrupted . | . . Combat Hostiles . | . . Robots Corrupted 3 | . 3 Combat Hostiles 1 | . 1 Parts Fried 8 | . 8 Impact Corruptions 6 | . 6 Robots Melted 2 | . 2 Combat Hostiles 2 | . 2 Parts Melted 2 | . 2 Heat Transferred 818 | 148 670 Parts Sabotaged . | . . Parts Stolen . | . . Parts Stripped . | . . Power Chain Reactions . | . . Alert | -11 -10 ------- Run | Yrd Mat Maximum Alert Level . | . . Low Security (%) 100 | 100 100 Level 1 . | . . Level 2 . | . . Level 3 . | . . Level 4 . | . . Level 5 . | . . High Security . | . . Max Security . | . . Peak Influence 156 | 15 156 Initial . | . . Average 53 | 1 62 Influence Increases 380 | 20 360 Destroy 0b10 Robot/C 180 | . 180 Destroy 0b10 Robot/NC 35 | 20 15 Destroy Leader 30 | . 30 Successful Hack 63 | . 63 Disable Machine 45 | . 45 Destroy Structure 27 | . 27 Influence Decreases 327 | 20 307 Time Decay 287 | 20 267 Lost Part 40 | . 40 Squads Dispatched 1 | . 1 Investigation . | . . Extermination . | . . Reinforcement 1 | . 1 Assault . | . . Garrison . | . . Intercept . | . . Searches Triggered . | . . Construction Impeded . | . . Haulers Reinforced . | . . Active Scanning Responses . | . . Cargo Convoy Interrupts . | . . Stealth | -11 -10 --------- Run | Yrd Mat Distress Signals 3 | . 3 Communications Jammed . | . . Distress Signals . | . . Times Spotted 18 | . 18 Peak Tracking Total 6 | . 6 Tactical Retreats . | . . Traps | -11 -10 ------- Run | Yrd Mat Traps Triggered . | . . Indirectly . | . . Trap Hack Attempts . | . . Triggered . | . . Disarmed . | . . Reprogrammed . | . . Reused . | . . Traps Extracted . | . . Installed . | . . Triggered . | . . Machines | -11 -10 ---------- Run | Yrd Mat Machines Disabled 3 | . 3 Max in Single Turn 2 | . 2 Machines Repaired . | . . Machines Dismantled . | . . Machines Sabotaged . | . . Overloaded Fab Kills . | . . Hacking | -11 -10 --------- Run | Yrd Mat Machines Accessed 6 | . 6 Terminals 6 | . 6 Fabricators . | . . Repair Stations . | . . Recycling Units . | . . Scanalyzers . | . . Garrison Access . | . . Total Hacks 28 | . 28 Successful 17 | . 17 Failed 11 | . 11 Catastrophic 2 | . 2 Database Lockouts . | . . Manual 17 | . 17 Terminals 28 | . 28 Fabricators . | . . Repair Stations . | . . Recycling Units . | . . Scanalyzers . | . . Garrison Access . | . . Terminal Hacks 9 | . 9 Prototype ID Bank 1 | . 1 Terminal Index 1 | . 1 Recycling Unit Index 1 | . 1 Alert Level 1 | . 1 Locate Traps 2 | . 2 Registered Components 1 | . 1 Registered Prototypes 1 | . 1 Zone Layout 1 | . 1 Fabricator Hacks . | . . Repair Station Hacks . | . . Recycling Unit Hacks . | . . Scanalyzer . | . . Garrison Access Hacks . | . . Unauthorized Hacks 7 | . 7 Terminals 7 | . 7 Assimilate 2 | . 2 Botnet 5 | . 5 Fabricators . | . . Repair Stations . | . . Recycling Units . | . . Scanalyzers . | . . Garrison Access . | . . Data Cores Recovered . | . . Used . | . . Hacking Detections 6 | . 6 Full Trace Events 1 | . 1 Feedback Events . | . . Feedback Blocked . | . . Robot Schematics Acquired . | . . Robots Built . | . . Authchips . | . . Time . | . . Total Robot Build Rating . | . . Part Schematics Acquired . | . . Parts Built . | . . Authchips . | . . Time . | . . Total Part Build Rating . | . . Part Studies Acquired . | . . Parts Repaired . | . . Time . | . . Parts Recycled . | . . Recycled Matter . | . . Retrieved Matter . | . . Retrieved Components . | . . Parts Scanalyzed . | . . Part Schematics Acquired . | . . Parts Damaged . | . . Bothacking | -11 -10 ------------ Run | Yrd Mat Used RIF Installer . | . . Robots Hacked . | . . Non-combat . | . . Combat . | . . Robot Hacks Applied . | . . Relay Couplers Released . | . . Fabnet Peak Effective % . | . . Robots Rewired . | . . Allies Hacked . | . . Hacks Repelled . | . . Allies | -11 -10 -------- Run | Yrd Mat Total Allies . | . . Largest Group . | . . Highest-Rated Group . | . . Highest-Rated Ally . | . . Total Orders . | . . Ally Attacks . | . . Total Damage . | . . Kills . | . . Allies Corrupted . | . . Allies Melted . | . . Intel | -11 -10 ------- Run | Yrd Mat Active Infowar (turns) 911 | 55 856 Seismic 911 | 55 856 Robot Analysis Total . | . . Derelict Logs Recovered . | . . Drone Launches . | . . Drone Recoveries . | . . Exploration | -11 -10 ------------- Run | Yrd Mat Turns Passed 1005 | 149 856 Spaces Moved 405 | 68 337 Core 4 | 4 . Treads 278 | 64 214 Legs . | . . Wheels 123 | . 123 Hover . | . . Flight . | . . Fastest Speed 50 | 50 80 Average Speed 134 | 153 130 Slowest Speed 160 | 160 160 Overloaded Moves . | . . Propulsion Burnouts . | . . Robots Hopped . | . . Potential Cave-ins . | . . Cave-ins Triggered . | . . Exploration Rate (%) 32 | 5 60 Regions Visited 1 Branch Regions . Pre-discovered Areas . | . . Known Exits Taken . | . . Unknown Exits Taken 1 | 1 . Scrap Searched . | . . Spaces Dug . | . . Terrain Destroyed 36 | . 36 Melee . | . . Projectile . | . . AOE 36 | . 36 Terrain Rammed . | . . Walls Destroyed . | . . Machines Disabled . | . . Actions | -11 -10 --------- Run | Yrd Mat Total 784 | 100 684 Wait 286 | 8 278 Move 404 | 67 337 Hop . | . . Pick Up 17 | 8 9 Fast Attach 10 | 7 3 Attach 3 | . 3 Detach 1 | . 1 Swap 5 | 2 3 Drop 10 | . 10 Fire 27 | 8 19 Melee 16 | . 16 Ram . | . . Kick . | . . Crush 5 | . 5 Escape Stasis . | . . Rewire . | . . Trap . | . . Miscellaneous . | . . Route ------- -11/Scrapyard -10/Materials (discovered 4 exits: [*Mat] / [*Min x2] / [*Sub]) History --------- Turn | Location | Event 7 | -11/Scrapyard | Discovered new exit (range 15) 150 | -11/Scrapyard | Entered Materials 308 | -10/Materials | Build established: Mutant 492 | -10/Materials | Discovered new exit (range 12) 543 | -10/Materials | Core integrity fell below 50% 580 | -10/Materials | Lost 3 parts (1p1n1w) 702 | -10/Materials | Discovered new exit (range 7) 717 | -10/Materials | Discovered new exit (range 14) 976 | -10/Materials | Discovered new exit (range 7) 1006 | -10/Materials | Made a sacrifice at D.C.S.S. Altar Unit 1006 | -10/Materials | Sacrificed to X0-1V1 Last Messages --------------- 00962_ U-05 Engineer lays Concrete. 00965_ T-07 Excavator is excavating. 00965_ U-05 Engineer lays Concrete. 00966_ U-05 Engineer builds a Wall. 00972_ T-07 Excavator is excavating. 00974_ U-05 Engineer lays Concrete. 00976_ T-07 Excavator is excavating. 00976_ U-05 Engineer lays Concrete. 00976_ EXIT=FOUND 00983_ T-07 Excavator is excavating. 00986_ U-05 Engineer lays Concrete. 00987_ T-07 Excavator is excavating. 00988_ U-05 Engineer lays Concrete. 00990_ U-05 Engineer builds a Wall. 00992_ T-07 Excavator is excavating. 00993_ U-05 Engineer lays Concrete. 00996_ T-07 Excavator is excavating. 00997_ U-05 Engineer lays Concrete. 01000_ K-01 Serf collects debris. 01006_ Connecting with D.C.S.S. Altar Unit... Map ----- +----------------------------------------------------+ | | | | | | | | | | | | | | | ????????##############???????????????? | | ????????# #???????????????? | | ????????# / """ #???????????????? | | ????????# """ #???????????????? | | ????????# ""T"" """ #???????????????? | | ????????# """"" #???#######?????? | | ????????#######+########## #?????? | | ???????????# #????## | | ???????????# < < #????# | | ???????????# k #????# | | ???????????####%########## #????# | | ???????????# ####### ##????# | | ???????????# # # #?????# | | ???????????# u # " # #?????# | | ???????????# t # """ # ######## | | ???????????# u# """ # | | ???????????# # """ + | | ???????????# # "" # | | ???????????##@ # """ ### ###### | | ???????????#X#####<## "" #?# #????? | | ???????????##?????### """ #?# #????? | | ????????????????????# " #?# #????? | | ????????????????????# #?# #????? | | ????????????????????? #?# #????? | | ????????????????????#??####?# #????? | | ????????????????????????????# ###### | | ??????????????????###??????## ## | | ?????????????????? ##### # | | ?????????????????# ^^ # """ | | ?????????????????+ ^^ + """ | | ?????????????????# ^^ # """ | | ?????????????????? ##### # | | ????????????????????######### ###### | | ????????????????????# / # ###### | | ????????????????????# + ##""!" | | ????????????????????# # ## "!" | | ????????????????????# # ## | | ????????????????????# # | | ????????????????????# # ! < | | ????????????????????######### = | | ????????????????????????#######+## | | ????????????????????????# = =##### | | ????????????????????????# [! #???? | +----------------------------------------------------+ Best States ------------- Heat Dissipation 25 Energy Generation 10 Energy Capacity 125 Matter Stores 300 Matter Capacity 300 Sight Range 16 Terrain Scan Density 10 Evasion (%) 44 Recoil Reduction 2 Item Schematics ----------------- None Robot Schematics ------------------ None Fabricated ------------ Nothing Repaired ---------- Nothing Studied --------- None Alien Tech Used ----------------- None Achievements -------------- None Challenges ------------ None Game ------ Seed ControlSniperAutogun Manual? 0 Play Time 00:18:00 Cumulative 100.9 hours Start 2026.09.04 @ 12:07:54 End 2026.09.04 @ 12:40:56 Sessions 1 Manual Loads 0 Difficulty Rogue Special Mode None Game No. 45 Rogue 45 Adventurer 0 Explorer 0 Win Type - Total 1 Types 1/0/0/0/0/0/0/0/0/0 Lore% 33 Gallery% 46 Achievement% 41 Wizard Run 0 Options --------- Layout 1 ASCII 0 Keyboard 0 Movement Arrows Keybinds 0 Fullscreen 2 Font 24/Smallcaps Map View 50x35 Zoom Use 0% Tactical HUD 1 Map Filters NONE Filters NONE Steam 1 RUN: 27c7e1e5-a08d-4c58-ac6c-6f7b5da99677